[Event "Early-Titled-Tuesday-Blitz-May-28-2024"]
[Site "Chess.com"]
[Date "2024.05.28"]
[Round "5"]
[White "NovakRatko"]
[Black "kecalk"]
[Result "0-1"]
[WhiteElo "2378"]
[BlackElo "2551"]
[TimeControl "180+1"]
[EndTime "8:57:25 PDT"]
[Termination "kecalk won on time"]

1. d4 {[%clk 0:02:48.5]} 1... Nf6 {[%clk 0:02:59.2]} 2. c4 {[%clk 0:02:49.1]}
2... e6 {[%clk 0:02:59.5]} 3. Bg5 {[%clk 0:02:49.4]} 3... c5 {[%clk 0:02:56.9]}
4. d5 {[%clk 0:02:47.6]} 4... exd5 {[%clk 0:02:56.4]} 5. cxd5 {[%clk 0:02:47.9]}
5... d6 {[%clk 0:02:56.7]} 6. Nc3 {[%clk 0:02:47.9]} 6... h6 {[%clk 0:02:55.8]}
7. Bh4 {[%clk 0:02:47]} 7... g5 {[%clk 0:02:55.5]} 8. Bg3 {[%clk 0:02:46.8]}
8... Nh5 {[%clk 0:02:55.9]} 9. e4 {[%clk 0:02:46.7]} 9... Nxg3 {[%clk
0:02:55.7]} 10. hxg3 {[%clk 0:02:46.2]} 10... Bg7 {[%clk 0:02:53.7]} 11. f4
{[%clk 0:02:44.5]} 11... a6 {[%clk 0:02:35]} 12. a4 {[%clk 0:02:43.7]} 12... Qf6
{[%clk 0:02:29.4]} 13. Qd2 {[%clk 0:02:30.2]} 13... Qd4 {[%clk 0:02:28.9]} 14.
Bd3 {[%clk 0:02:17.5]} 14... c4 {[%clk 0:02:26.6]} 15. Be2 {[%clk 0:02:17.3]}
15... Qxd2+ {[%clk 0:01:57.5]} 16. Kxd2 {[%clk 0:02:18.2]} 16... Nd7 {[%clk
0:01:57.6]} 17. Bxc4 {[%clk 0:02:15.9]} 17... Nc5 {[%clk 0:01:56.6]} 18. Nge2
{[%clk 0:02:15.7]} 18... Bg4 {[%clk 0:01:50.6]} 19. Rae1 {[%clk 0:02:00]} 19...
Rc8 {[%clk 0:01:46.9]} 20. Bd3 {[%clk 0:01:29.2]} 20... Nxd3 {[%clk 0:01:22.6]}
21. Kxd3 {[%clk 0:01:28.7]} 21... f5 {[%clk 0:01:23.3]} 22. Nd4 {[%clk
0:01:19.6]} 22... fxe4+ {[%clk 0:01:21.7]} 23. Nxe4 {[%clk 0:01:12.5]} 23... Kd7
{[%clk 0:01:19.7]} 24. fxg5 {[%clk 0:01:10.1]} 24... hxg5 {[%clk 0:01:12.8]} 25.
Rxh8 {[%clk 0:01:05.8]} 25... Rxh8 {[%clk 0:01:02.6]} 26. Nxg5 {[%clk
0:01:05.8]} 26... Rh5 {[%clk 0:00:37.3]} 27. Nge6 {[%clk 0:00:59.8]} 27... Be5
{[%clk 0:00:34.4]} 28. Kc4 {[%clk 0:00:52.9]} 28... Bxg3 {[%clk 0:00:32.2]} 29.
Rf1 {[%clk 0:00:51.8]} 29... Ke7 {[%clk 0:00:30.8]} 30. Rf8 {[%clk 0:00:30.5]}
30... b5+ {[%clk 0:00:30.2]} 31. axb5 {[%clk 0:00:30.5]} 31... axb5+ {[%clk
0:00:31.1]} 32. Kxb5 {[%clk 0:00:21.1]} 32... Rxd5+ {[%clk 0:00:29.8]} 33. Kc4
{[%clk 0:00:20.8]} 33... Bxe6 {[%clk 0:00:15.1]} 34. Nxe6 {[%clk 0:00:15.5]}
34... Kxe6 {[%clk 0:00:16]} 35. Re8+ {[%clk 0:00:15.5]} 35... Kd7 {[%clk
0:00:16.5]} 36. Rg8 {[%clk 0:00:13.5]} 36... Rc5+ {[%clk 0:00:14.1]} 37. Kd3
{[%clk 0:00:13.1]} 37... Be5 {[%clk 0:00:14.1]} 38. b4 {[%clk 0:00:12]} 38...
Rc1 {[%clk 0:00:12.8]} 39. g4 {[%clk 0:00:11.4]} 39... Ke6 {[%clk 0:00:12.8]}
40. Ke4 {[%clk 0:00:09.4]} 40... Rc4+ {[%clk 0:00:12.6]} 41. Kd3 {[%clk
0:00:09.3]} 41... Rxb4 {[%clk 0:00:13.5]} 42. Rg6+ {[%clk 0:00:08.5]} 42... Kd5
{[%clk 0:00:13.4]} 43. Rg8 {[%clk 0:00:09.4]} 43... Rb3+ {[%clk 0:00:13.8]} 44.
Ke2 {[%clk 0:00:09.5]} 44... Ke4 {[%clk 0:00:14.3]} 45. Kf2 {[%clk 0:00:09.2]}
45... Rb2+ {[%clk 0:00:13.8]} 46. Ke1 {[%clk 0:00:07.6]} 46... d5 {[%clk
0:00:10.2]} 47. Re8 {[%clk 0:00:06.2]} 47... Rg2 {[%clk 0:00:09.7]} 48. Rg8
{[%clk 0:00:03.7]} 48... d4 {[%clk 0:00:09.6]} 49. Kf1 {[%clk 0:00:04.1]} 49...
Ra2 {[%clk 0:00:08.7]} 50. g5 {[%clk 0:00:04.5]} 50... d3 {[%clk 0:00:09]} 51.
Rd8 {[%clk 0:00:04.6]} 51... Ra1+ {[%clk 0:00:08]} 52. Kf2 {[%clk 0:00:04.7]}
52... Bd4+ {[%clk 0:00:07.3]} 53. Kg2 {[%clk 0:00:04.4]} 53... d2 {[%clk
0:00:07.2]} 54. Re8+ {[%clk 0:00:05]} 54... Kd3 {[%clk 0:00:07.3]} 0-1

[Event "Early-Titled-Tuesday-Blitz-May-28-2024"]
[Site "Chess.com"]
[Date "2024.05.28"]
[Round "5"]
[White "TomLiu777"]
[Black "JM05C"]
[Result "1-0"]
[WhiteElo "2382"]
[BlackElo "2534"]
[TimeControl "180+1"]
[EndTime "8:57:26 PDT"]
[Termination "TomLiu777 won by resignation"]

1. d4 {[%clk 0:02:52.4]} 1... e6 {[%clk 0:02:34.1]} 2. c4 {[%clk 0:02:49.5]}
2... d5 {[%clk 0:02:31.8]} 3. Nc3 {[%clk 0:02:47.3]} 3... Nf6 {[%clk 0:02:29.6]}
4. Bg5 {[%clk 0:02:45.8]} 4... c6 {[%clk 0:02:27.7]} 5. cxd5 {[%clk 0:02:42.6]}
5... exd5 {[%clk 0:02:27]} 6. e3 {[%clk 0:02:42.3]} 6... h6 {[%clk 0:02:26.1]}
7. Bh4 {[%clk 0:02:41.6]} 7... Be7 {[%clk 0:02:25.2]} 8. Bd3 {[%clk 0:02:36.8]}
8... O-O {[%clk 0:02:24.1]} 9. Qc2 {[%clk 0:02:34]} 9... Re8 {[%clk 0:02:24.2]}
10. Nge2 {[%clk 0:02:29.2]} 10... Nbd7 {[%clk 0:02:24.1]} 11. O-O {[%clk
0:02:27.5]} 11... Nf8 {[%clk 0:02:24.1]} 12. f3 {[%clk 0:02:21.1]} 12... c5
{[%clk 0:02:21]} 13. Bb5 {[%clk 0:02:11.1]} 13... Bd7 {[%clk 0:02:19.3]} 14.
Bxd7 {[%clk 0:01:59.5]} 14... Qxd7 {[%clk 0:02:20.2]} 15. dxc5 {[%clk
0:01:56.2]} 15... Bxc5 {[%clk 0:02:19.1]} 16. Bxf6 {[%clk 0:01:53.7]} 16...
Bxe3+ {[%clk 0:02:18.3]} 17. Kh1 {[%clk 0:01:53.7]} 17... gxf6 {[%clk
0:02:18.9]} 18. Rad1 {[%clk 0:01:50]} 18... d4 {[%clk 0:02:13.7]} 19. Ne4 {[%clk
0:01:24.8]} 19... Kg7 {[%clk 0:01:55.7]} 20. N2g3 {[%clk 0:01:20.2]} 20... Re5
{[%clk 0:01:48]} 21. f4 {[%clk 0:01:15.9]} 21... Rd5 {[%clk 0:01:41.2]} 22. f5
{[%clk 0:00:59.5]} 22... Nh7 {[%clk 0:01:12.7]} 23. Nh5+ {[%clk 0:00:54.3]}
23... Kh8 {[%clk 0:01:13.1]} 24. Nhxf6 {[%clk 0:00:53.2]} 24... Nxf6 {[%clk
0:01:14]} 25. Nxf6 {[%clk 0:00:53.8]} 25... Qd6 {[%clk 0:01:14.9]} 26. Nxd5
{[%clk 0:00:52.8]} 26... Qxd5 {[%clk 0:01:15.8]} 27. Qe2 {[%clk 0:00:49.6]}
27... Rg8 {[%clk 0:01:12.3]} 28. Rf3 {[%clk 0:00:45.4]} 28... Qe5 {[%clk
0:01:01.7]} 29. Rh3 {[%clk 0:00:37.6]} 29... Kh7 {[%clk 0:00:56.3]} 30. Rf1
{[%clk 0:00:25.9]} 30... Rg5 {[%clk 0:00:54.7]} 31. f6 {[%clk 0:00:24.5]} 31...
Rg6 {[%clk 0:00:52.7]} 32. Qd3 {[%clk 0:00:21.8]} 32... Qd5 {[%clk 0:00:47.2]}
33. Rhf3 {[%clk 0:00:20.1]} 33... Kg8 {[%clk 0:00:39.8]} 34. Re1 {[%clk
0:00:09.9]} 34... Qxa2 {[%clk 0:00:33.3]} 35. Qf5 {[%clk 0:00:06.6]} 35... Qxb2
{[%clk 0:00:28.2]} 36. Qc8+ {[%clk 0:00:05.7]} 36... Kh7 {[%clk 0:00:27.8]} 37.
Rg3 {[%clk 0:00:06.3]} 37... Rxg3 {[%clk 0:00:21.1]} 38. hxg3 {[%clk 0:00:07.2]}
38... Qf2 {[%clk 0:00:21.2]} 39. Rd1 {[%clk 0:00:03.6]} 39... Qxf6 {[%clk
0:00:17.2]} 40. Qc2+ {[%clk 0:00:02.8]} 40... Kg7 {[%clk 0:00:16]} 41. Qe4
{[%clk 0:00:03.5]} 41... Qg6 {[%clk 0:00:15.4]} 42. Qe5+ {[%clk 0:00:03.5]}
42... Kh7 {[%clk 0:00:11.5]} 43. Rf1 {[%clk 0:00:02.9]} 43... Bg5 {[%clk
0:00:06.7]} 44. Rf5 {[%clk 0:00:02.9]} 44... d3 {[%clk 0:00:05.6]} 45. Qd5
{[%clk 0:00:03]} 45... Kg7 {[%clk 0:00:04]} 46. Qe5+ {[%clk 0:00:02.8]} 46...
Bf6 {[%clk 0:00:03.7]} 47. Qd5 {[%clk 0:00:03]} 47... d2 {[%clk 0:00:03.6]} 48.
Rf1 {[%clk 0:00:03.4]} 48... Bg5 {[%clk 0:00:03.4]} 49. Qe5+ {[%clk 0:00:03.3]}
49... Bf6 {[%clk 0:00:03.3]} 50. Qd5 {[%clk 0:00:03.9]} 50... Qh5+ {[%clk
0:00:03.8]} 51. Qxh5 {[%clk 0:00:03.8]} 51... Bg5 {[%clk 0:00:04.7]} 52. Qd1
{[%clk 0:00:04]} 52... b5 {[%clk 0:00:03.8]} 53. Qa1+ {[%clk 0:00:04.5]} 53...
f6 {[%clk 0:00:03.6]} 54. Qd1 {[%clk 0:00:05.4]} 54... Kg6 {[%clk 0:00:04.4]}
55. Qc2+ {[%clk 0:00:05.5]} 55... Kg7 {[%clk 0:00:04]} 56. Rd1 {[%clk
0:00:06.2]} 1-0

[Event "Early-Titled-Tuesday-Blitz-May-28-2024"]
[Site "Chess.com"]
[Date "2024.05.28"]
[Round "5"]
[White "vi_pranav"]
[Black "MatthewG-p4p"]
[Result "1-0"]
[WhiteElo "3051"]
[BlackElo "2890"]
[TimeControl "180+1"]
[EndTime "8:57:28 PDT"]
[Termination "vi_pranav won on time"]

1. e4 {[%clk 0:03:00.9]} 1... c5 {[%clk 0:02:57.3]} 2. Nf3 {[%clk 0:03:00.6]}
2... g6 {[%clk 0:02:57.1]} 3. d4 {[%clk 0:02:57.6]} 3... cxd4 {[%clk 0:02:58]}
4. Qxd4 {[%clk 0:02:57.7]} 4... Nf6 {[%clk 0:02:58.4]} 5. Bb5 {[%clk 0:02:58.1]}
5... Nc6 {[%clk 0:02:53.3]} 6. Bxc6 {[%clk 0:02:58.3]} 6... bxc6 {[%clk
0:02:54.2]} 7. Nc3 {[%clk 0:02:54.9]} 7... Bb7 {[%clk 0:02:24.1]} 8. O-O {[%clk
0:02:38.7]} 8... Bg7 {[%clk 0:02:20.7]} 9. e5 {[%clk 0:02:37.9]} 9... Nd5 {[%clk
0:02:20.3]} 10. Nxd5 {[%clk 0:02:36.4]} 10... cxd5 {[%clk 0:02:21.2]} 11. Qh4
{[%clk 0:02:36.9]} 11... h6 {[%clk 0:02:18.8]} 12. c3 {[%clk 0:02:35]} 12... d6
{[%clk 0:02:01.5]} 13. Re1 {[%clk 0:02:24.3]} 13... dxe5 {[%clk 0:01:30.7]} 14.
Nxe5 {[%clk 0:02:25.2]} 14... e6 {[%clk 0:01:30.4]} 15. Qa4+ {[%clk 0:01:46.9]}
15... Kf8 {[%clk 0:01:30.4]} 16. Qb4+ {[%clk 0:01:33.7]} 16... Qe7 {[%clk
0:01:30.4]} 17. Nd7+ {[%clk 0:01:34.1]} 17... Ke8 {[%clk 0:01:24.3]} 18. Qxb7
{[%clk 0:01:30.9]} 18... Rd8 {[%clk 0:01:24.3]} 19. Nc5 {[%clk 0:01:23.8]} 19...
Qxc5 {[%clk 0:01:19.8]} 20. Be3 {[%clk 0:01:15.1]} 20... Qe7 {[%clk 0:01:10.9]}
21. Qa6 {[%clk 0:01:14.6]} 21... Kf8 {[%clk 0:00:36.2]} 22. a4 {[%clk
0:00:55.9]} 22... Rd7 {[%clk 0:00:29.6]} 23. Qc8+ {[%clk 0:00:45.7]} 23... Rd8
{[%clk 0:00:24.9]} 24. Qc6 {[%clk 0:00:44.8]} 24... Kg8 {[%clk 0:00:24.3]} 25.
a5 {[%clk 0:00:42.1]} 25... Kh7 {[%clk 0:00:23.7]} 26. a6 {[%clk 0:00:42.6]}
26... Rc8 {[%clk 0:00:21.9]} 27. Qa4 {[%clk 0:00:42.2]} 27... Rb8 {[%clk
0:00:21.4]} 28. Re2 {[%clk 0:00:40.4]} 28... Rhc8 {[%clk 0:00:20.5]} 29. h3
{[%clk 0:00:40.5]} 29... Rc4 {[%clk 0:00:20.5]} 30. Qa5 {[%clk 0:00:40.6]} 30...
Qd7 {[%clk 0:00:19.8]} 31. Qa2 {[%clk 0:00:37.8]} 31... Rc6 {[%clk 0:00:18.9]}
32. Ree1 {[%clk 0:00:32.5]} 32... Bf8 {[%clk 0:00:17.8]} 33. Red1 {[%clk
0:00:30]} 33... Bc5 {[%clk 0:00:18]} 34. Bf4 {[%clk 0:00:20.6]} 34... Bd6 {[%clk
0:00:18.2]} 35. Be3 {[%clk 0:00:18.9]} 35... Bc5 {[%clk 0:00:18.5]} 36. Bd4
{[%clk 0:00:14.7]} 36... Bxd4 {[%clk 0:00:17.8]} 37. Rxd4 {[%clk 0:00:15.6]}
37... Rbb6 {[%clk 0:00:17.5]} 38. Qa3 {[%clk 0:00:15.5]} 38... Qc8 {[%clk
0:00:14.5]} 39. Ra4 {[%clk 0:00:12]} 39... Qc7 {[%clk 0:00:11.1]} 40. Rh4 {[%clk
0:00:11.8]} 40... Qd6 {[%clk 0:00:07.9]} 41. Qxd6 {[%clk 0:00:02.8]} 41... Rxd6
{[%clk 0:00:08.8]} 42. Rha4 {[%clk 0:00:02.6]} 42... Rxb2 {[%clk 0:00:09]} 43.
c4 {[%clk 0:00:02.6]} 43... dxc4 {[%clk 0:00:06.6]} 44. Rxc4 {[%clk 0:00:03.5]}
44... Rbb6 {[%clk 0:00:04.1]} 45. Rc7 {[%clk 0:00:03.9]} 45... Rxa6 {[%clk
0:00:04.6]} 46. Rxf7+ {[%clk 0:00:03.5]} 46... Kg8 {[%clk 0:00:04.9]} 47. Rxa7
{[%clk 0:00:04.4]} 47... Rxa7 {[%clk 0:00:04.5]} 48. Rxa7 {[%clk 0:00:05.3]}
48... e5 {[%clk 0:00:04.9]} 49. Re7 {[%clk 0:00:04.8]} 49... Rd1+ {[%clk
0:00:03.8]} 50. Kh2 {[%clk 0:00:05]} 50... Rd5 {[%clk 0:00:04.2]} 51. Kg3 {[%clk
0:00:05.1]} 51... Kf8 {[%clk 0:00:04.8]} 52. Rh7 {[%clk 0:00:05.4]} 52... h5
{[%clk 0:00:03.6]} 53. f3 {[%clk 0:00:05.8]} 53... Kg8 {[%clk 0:00:03.5]} 54.
Ra7 {[%clk 0:00:06.2]} 54... Rc5 {[%clk 0:00:03.5]} 55. Kh4 {[%clk 0:00:06]}
55... Kf8 {[%clk 0:00:01.2]} 56. Kg5 {[%clk 0:00:05.6]} 56... e4+ {[%clk
0:00:01.6]} 57. Kf6 {[%clk 0:00:05.6]} 57... exf3 {[%clk 0:00:02.5]} 58. Ra8+
{[%clk 0:00:05.7]} 1-0

[Event "Early-Titled-Tuesday-Blitz-May-28-2024"]
[Site "Chess.com"]
[Date "2024.05.28"]
[Round "5"]
[White "Kumi29"]
[Black "ilqar_74"]
[Result "0-1"]
[WhiteElo "2570"]
[BlackElo "2778"]
[TimeControl "180+1"]
[EndTime "8:57:28 PDT"]
[Termination "ilqar_74 won by checkmate"]

1. d4 {[%clk 0:02:44.2]} 1... Nf6 {[%clk 0:02:59.1]} 2. Bg5 {[%clk 0:02:44.3]}
2... Ne4 {[%clk 0:02:57.3]} 3. h4 {[%clk 0:02:44.3]} 3... c5 {[%clk 0:02:50.9]}
4. d5 {[%clk 0:02:44.4]} 4... Nxg5 {[%clk 0:02:44.7]} 5. hxg5 {[%clk 0:02:45.3]}
5... Qb6 {[%clk 0:02:45.2]} 6. Nd2 {[%clk 0:02:43.7]} 6... d6 {[%clk 0:02:44.3]}
7. g6 {[%clk 0:02:41.9]} 7... fxg6 {[%clk 0:02:41.9]} 8. e3 {[%clk 0:02:42.5]}
8... Nd7 {[%clk 0:02:34.1]} 9. Nc4 {[%clk 0:02:33.1]} 9... Qc7 {[%clk
0:02:10.3]} 10. a4 {[%clk 0:02:32.8]} 10... Nf6 {[%clk 0:02:06.2]} 11. Nf3
{[%clk 0:02:27.6]} 11... Bf5 {[%clk 0:01:59.4]} 12. Bd3 {[%clk 0:02:18.4]} 12...
Qd7 {[%clk 0:01:48.1]} 13. Nce5 {[%clk 0:02:04.2]} 13... Qc7 {[%clk 0:01:22.5]}
14. Bb5+ {[%clk 0:02:03.9]} 14... Nd7 {[%clk 0:01:22.5]} 15. Nxd7 {[%clk
0:01:57]} 15... Bxd7 {[%clk 0:01:21.9]} 16. Ng5 {[%clk 0:01:57.3]} 16... Bxb5
{[%clk 0:01:07.1]} 17. axb5 {[%clk 0:01:55.9]} 17... Qd7 {[%clk 0:01:06]} 18.
Ne6 {[%clk 0:01:51]} 18... b6 {[%clk 0:01:06]} 19. c4 {[%clk 0:01:43.8]} 19...
g5 {[%clk 0:01:02.7]} 20. Qf3 {[%clk 0:01:41.6]} 20... Qb7 {[%clk 0:00:51.8]}
21. Ra6 {[%clk 0:01:10.1]} 21... g6 {[%clk 0:00:39.6]} 22. Qg4 {[%clk
0:00:54.2]} 22... h6 {[%clk 0:00:32.3]} 23. Nxg5 {[%clk 0:00:53.8]} 23... Qd7
{[%clk 0:00:22.2]} 24. Ne6 {[%clk 0:00:51.6]} 24... Kf7 {[%clk 0:00:21.5]} 25.
e4 {[%clk 0:00:46.9]} 25... Bg7 {[%clk 0:00:16.9]} 26. Ra3 {[%clk 0:00:44.2]}
26... Bf6 {[%clk 0:00:14]} 27. Rf3 {[%clk 0:00:41.5]} 27... a6 {[%clk
0:00:10.1]} 28. Qf4 {[%clk 0:00:34.5]} 28... axb5 {[%clk 0:00:08.8]} 29. Rxh6
{[%clk 0:00:34.9]} 29... bxc4 {[%clk 0:00:05.1]} 30. Rfh3 {[%clk 0:00:27.3]}
30... Rxh6 {[%clk 0:00:03.3]} 31. Rxh6 {[%clk 0:00:23.4]} 31... Rg8 {[%clk
0:00:03.7]} 32. Qg4 {[%clk 0:00:18.5]} 32... Qa4 {[%clk 0:00:02.7]} 33. Rh7+
{[%clk 0:00:13]} 33... Ke8 {[%clk 0:00:03.1]} 34. g3 {[%clk 0:00:09.6]} 34...
Qb4+ {[%clk 0:00:02.8]} 35. Kf1 {[%clk 0:00:09.8]} 35... Qxb2 {[%clk 0:00:03.4]}
36. Kg2 {[%clk 0:00:05.2]} 36... c3 {[%clk 0:00:03.6]} 37. Nf4 {[%clk
0:00:03.6]} 37... Kd8 {[%clk 0:00:02.8]} 38. Qe6 {[%clk 0:00:02.5]} 38... Re8
{[%clk 0:00:02.6]} 39. Nxg6 {[%clk 0:00:02.5]} 39... c2 {[%clk 0:00:03.2]} 40.
e5 {[%clk 0:00:01]} 40... c1=Q {[%clk 0:00:03.4]} 41. exf6 {[%clk 0:00:01.3]}
41... Qxf6 {[%clk 0:00:03]} 42. Qxf6 {[%clk 0:00:01]} 42... exf6 {[%clk
0:00:03.9]} 43. Nf4 {[%clk 0:00:01.6]} 43... Qc4 {[%clk 0:00:04]} 44. Ne6+
{[%clk 0:00:02.1]} 44... Rxe6 {[%clk 0:00:03.4]} 45. dxe6 {[%clk 0:00:03]} 45...
Qxe6 {[%clk 0:00:04.1]} 46. g4 {[%clk 0:00:03.6]} 46... Qd5+ {[%clk 0:00:05]}
47. Kg3 {[%clk 0:00:03.5]} 47... b5 {[%clk 0:00:05.9]} 48. f3 {[%clk 0:00:04.4]}
48... Qd4 {[%clk 0:00:06.5]} 49. Kh4 {[%clk 0:00:04.6]} 49... b4 {[%clk
0:00:07.1]} 50. Rh5 {[%clk 0:00:05]} 50... b3 {[%clk 0:00:07.5]} 51. Rf5 {[%clk
0:00:05.9]} 51... b2 {[%clk 0:00:08]} 52. Kh5 {[%clk 0:00:05]} 52... b1=Q {[%clk
0:00:08.3]} 53. Kg6 {[%clk 0:00:05.6]} 53... Qxf5+ {[%clk 0:00:08.9]} 54. gxf5
{[%clk 0:00:05.9]} 54... c4 {[%clk 0:00:09.6]} 55. f4 {[%clk 0:00:06.1]} 55...
c3 {[%clk 0:00:10.2]} 56. Kf7 {[%clk 0:00:06.8]} 56... c2 {[%clk 0:00:10.8]} 57.
Ke6 {[%clk 0:00:07.5]} 57... c1=Q {[%clk 0:00:10.3]} 58. Kf7 {[%clk 0:00:08]}
58... Qcc4+ {[%clk 0:00:10.9]} 59. Kg6 {[%clk 0:00:08.3]} 59... Qg8+ {[%clk
0:00:10.2]} 60. Kh5 {[%clk 0:00:08]} 60... d5 {[%clk 0:00:08.7]} 61. Kh6 {[%clk
0:00:07.4]} 61... Qxf4+ {[%clk 0:00:08.9]} 62. Kh5 {[%clk 0:00:08.3]} 62...
Qfg5# {[%clk 0:00:09.3]} 0-1

[Event "Early-Titled-Tuesday-Blitz-May-28-2024"]
[Site "Chess.com"]
[Date "2024.05.28"]
[Round "5"]
[White "David_Arutinian"]
[Black "AljoschaFeuerstack"]
[Result "0-1"]
[WhiteElo "2831"]
[BlackElo "2659"]
[TimeControl "180+1"]
[EndTime "8:57:30 PDT"]
[Termination "AljoschaFeuerstack won by checkmate"]

1. Nf3 {[%clk 0:02:04.4]} 1... d5 {[%clk 0:02:56.2]} 2. e3 {[%clk 0:02:04.3]}
2... Nf6 {[%clk 0:02:54.9]} 3. c4 {[%clk 0:02:04.5]} 3... c6 {[%clk 0:02:54.9]}
4. Nc3 {[%clk 0:02:04.4]} 4... g6 {[%clk 0:02:54.9]} 5. d4 {[%clk 0:02:04.2]}
5... Bg7 {[%clk 0:02:55.2]} 6. Be2 {[%clk 0:02:04.9]} 6... O-O {[%clk
0:02:55.6]} 7. O-O {[%clk 0:02:05.5]} 7... a6 {[%clk 0:02:53.3]} 8. b3 {[%clk
0:02:04.7]} 8... b5 {[%clk 0:02:47.7]} 9. Bb2 {[%clk 0:02:03.5]} 9... Bg4 {[%clk
0:02:46.4]} 10. h3 {[%clk 0:02:03.2]} 10... Bxf3 {[%clk 0:02:46.3]} 11. Bxf3
{[%clk 0:02:04.1]} 11... e6 {[%clk 0:02:41.1]} 12. Qc2 {[%clk 0:02:04.2]} 12...
Nbd7 {[%clk 0:02:40.9]} 13. Rfd1 {[%clk 0:02:04.8]} 13... bxc4 {[%clk
0:02:39.3]} 14. bxc4 {[%clk 0:02:04.4]} 14... Nb6 {[%clk 0:02:39.6]} 15. Be2
{[%clk 0:02:04.3]} 15... Nxc4 {[%clk 0:02:37.6]} 16. Bxc4 {[%clk 0:02:02.8]}
16... dxc4 {[%clk 0:02:38.5]} 17. Na4 {[%clk 0:02:03.4]} 17... Rb8 {[%clk
0:02:26]} 18. Qxc4 {[%clk 0:02:00.4]} 18... Qa5 {[%clk 0:02:23.3]} 19. Bc3
{[%clk 0:01:53.7]} 19... Qb5 {[%clk 0:02:20]} 20. Nb2 {[%clk 0:01:48.1]} 20...
Ne4 {[%clk 0:02:13.5]} 21. Qxb5 {[%clk 0:01:47]} 21... axb5 {[%clk 0:02:11.5]}
22. Rdc1 {[%clk 0:01:44.2]} 22... c5 {[%clk 0:02:09.1]} 23. Nd1 {[%clk
0:01:43.2]} 23... Nxc3 {[%clk 0:02:06.3]} 24. Nxc3 {[%clk 0:01:44.1]} 24... cxd4
{[%clk 0:02:06.9]} 25. exd4 {[%clk 0:01:44.2]} 25... Bxd4 {[%clk 0:02:07.5]} 26.
Rab1 {[%clk 0:01:41.7]} 26... b4 {[%clk 0:02:05.8]} 27. Ne2 {[%clk 0:01:39]}
27... Bf6 {[%clk 0:02:05.6]} 28. Rb3 {[%clk 0:01:35.9]} 28... Kg7 {[%clk
0:01:43.9]} 29. g3 {[%clk 0:01:30.4]} 29... Rfd8 {[%clk 0:01:43.2]} 30. Rc2
{[%clk 0:01:29.7]} 30... Be7 {[%clk 0:01:37.5]} 31. Nf4 {[%clk 0:01:29.2]} 31...
Rd1+ {[%clk 0:01:33.9]} 32. Kg2 {[%clk 0:01:29]} 32... Ra8 {[%clk 0:01:34.4]}
33. Nd3 {[%clk 0:01:18.7]} 33... Ra3 {[%clk 0:01:25.9]} 34. Rxa3 {[%clk
0:00:59.5]} 34... bxa3 {[%clk 0:01:25.8]} 35. Ne5 {[%clk 0:01:00.1]} 35... Rd5
{[%clk 0:01:05.2]} 36. Nc4 {[%clk 0:00:59]} 36... Rd3 {[%clk 0:01:02.4]} 37. Ne5
{[%clk 0:00:57.1]} 37... Rd5 {[%clk 0:00:53.3]} 38. Nc4 {[%clk 0:00:57.1]} 38...
Rb5 {[%clk 0:00:47.3]} 39. Kf3 {[%clk 0:00:53.1]} 39... f5 {[%clk 0:00:36.8]}
40. Ke2 {[%clk 0:00:50.4]} 40... e5 {[%clk 0:00:36]} 41. Rc3 {[%clk 0:00:50.6]}
41... Kf6 {[%clk 0:00:33.3]} 42. Nxa3 {[%clk 0:00:49.6]} 42... Rb2+ {[%clk
0:00:32.5]} 43. Nc2 {[%clk 0:00:49.8]} 43... Rxa2 {[%clk 0:00:32.2]} 44. Rc6+
{[%clk 0:00:46.7]} 44... Kf7 {[%clk 0:00:32.1]} 45. h4 {[%clk 0:00:45.9]} 45...
Ke8 {[%clk 0:00:23.1]} 46. Kf1 {[%clk 0:00:43]} 46... Kd7 {[%clk 0:00:23.3]} 47.
Rc4 {[%clk 0:00:43.6]} 47... Ke6 {[%clk 0:00:22]} 48. Ne3 {[%clk 0:00:43.3]}
48... Bd6 {[%clk 0:00:20]} 49. Rc6 {[%clk 0:00:41.9]} 49... Kd7 {[%clk
0:00:16.4]} 50. Rc3 {[%clk 0:00:38.2]} 50... Ra5 {[%clk 0:00:14.6]} 51. Rd3
{[%clk 0:00:29]} 51... Rc5 {[%clk 0:00:12.6]} 52. Kg2 {[%clk 0:00:25.3]} 52...
Ke6 {[%clk 0:00:12.9]} 53. Rd2 {[%clk 0:00:24.6]} 53... Rc3 {[%clk 0:00:12.6]}
54. Ra2 {[%clk 0:00:24]} 54... Bc5 {[%clk 0:00:11.7]} 55. Nf1 {[%clk 0:00:21.8]}
55... e4 {[%clk 0:00:11]} 56. Nh2 {[%clk 0:00:16.7]} 56... Kd5 {[%clk
0:00:10.9]} 57. Nf1 {[%clk 0:00:16.8]} 57... Kc4 {[%clk 0:00:11.3]} 58. Ra4+
{[%clk 0:00:16.6]} 58... Kb3 {[%clk 0:00:11.4]} 59. Ra5 {[%clk 0:00:15.9]} 59...
Rc2 {[%clk 0:00:11.8]} 60. Kh3 {[%clk 0:00:15.3]} 60... Bxf2 {[%clk 0:00:11.1]}
61. Rb5+ {[%clk 0:00:14.2]} 61... Kc4 {[%clk 0:00:10.7]} 62. Rb7 {[%clk
0:00:14.8]} 62... Bg1 {[%clk 0:00:10.8]} 63. g4 {[%clk 0:00:14.8]} 63... f4
{[%clk 0:00:10.1]} 64. g5 {[%clk 0:00:15]} 64... e3 {[%clk 0:00:09.3]} 65. Kg4
{[%clk 0:00:14.1]} 65... e2 {[%clk 0:00:09.3]} 66. Rc7+ {[%clk 0:00:14.3]} 66...
Kd3 {[%clk 0:00:08.6]} 67. Rd7+ {[%clk 0:00:14.3]} 67... Bd4 {[%clk 0:00:08.9]}
68. Nh2 {[%clk 0:00:14.1]} 68... e1=Q {[%clk 0:00:08.8]} 69. Nf3 {[%clk
0:00:15]} 69... Qg3# {[%clk 0:00:08.7]} 0-1